fUST/lending_fUST_20240229
["ID","MTS","AMOUNT","RATE_DAILY","PERIOD"]
[315713521,1709155843533,-500.0,0.00019452,2]
[315713523,1709155843542,-500.0,0.00019452,2]
[315713525,1709155843551,-500.0,0.00019452,2]
[315713527,1709155843560,-499.62280447,0.00019452,2]
[315713542,1709155843692,-155.20020827,0.00019178,2]
[315713544,1709155843703,-500.0,0.00019178,2]
[315713546,1709155843713,-0.37719553,0.00019452,2]
[315713548,1709155843722,-267.94020647,0.00019452,2]
[315713773,1709155845919,-305.53024882,0.00019178,2]
[315713775,1709155845936,-194.46975118,0.00019178,2]
[315713778,1709155845948,-67.9814316,0.00019452,2]
[315713780,1709155845960,-164.07836193,0.00019452,2]
[315713782,1709155845970,-237.27263499,0.00019452,2]
[315714468,1709156124215,346.913207,0.00017102,2]
[315714470,1709156467856,2942.751246,0.00017102,2]
[315714471,1709156516130,24900.0,0.00017102,2]
[315714725,1709156679897,265.060465,0.000173,2]
[315717301,1709157034657,-276.54638589,0.00017999,2]
[315717302,1709157034666,-159.85982904,0.00018,2]
[315717303,1709157034675,-37.42793534,0.00018001,2]
[315717304,1709157034686,-274.90350343,0.00018001,2]
[315717305,1709157034696,-160.1207913,0.00018353,2]
[315717306,1709157034705,-285.0,0.00018898,2]
[315717307,1709157034714,-3345.62842718,0.00018899,2]
[315717308,1709157034742,-10166.00670233,0.00018899,2]
[315717310,1709157034751,-2449.19766255,0.000189,2]
[315717312,1709157034761,-508.5283563,0.00019078,2]
[315717313,1709157034770,-168.81791008,0.00019078,2]
[315717314,1709157034779,-214.75,0.00019168,3]
[315717315,1709157034787,-644.25,0.00019168,3]
[315717316,1709157034796,-1213.52890565,0.00019177,2]
[315717317,1709157034805,-500.0,0.00019178,2]
[315717318,1709157034814,-366.98124146,0.00019178,2]
[315717319,1709157034823,-500.0,0.00019178,2]
[315717320,1709157034831,-500.76474039,0.00019178,2]
[315717321,1709157034840,-241.821721,0.00019178,2]
[315717322,1709157034849,-500.0,0.00019178,2]
[315717323,1709157034858,-500.55631999,0.00019178,2]
[315717324,1709157034867,-500.0,0.00019178,2]
[315717325,1709157034877,-500.0,0.00019178,2]
[315717326,1709157034886,-500.0,0.00019178,2]
[315717327,1709157034897,-396.71082189,0.00019178,2]
[315717328,1709157034907,-151.0,0.00019178,2]
[315717329,1709157034917,-500.0,0.00019178,2]
[315717330,1709157034930,-500.0,0.00019178,2]
[315717331,1709157034942,-500.0,0.00019178,2]
[315717332,1709157034953,-500.0,0.00019178,2]
[315717333,1709157034965,-500.0,0.00019178,2]
[315717334,1709157034978,-500.0,0.00019178,2]
[315717335,1709157034990,-262.72736501,0.00019178,2]
[315717336,1709157035001,-500.0,0.00019178,2]
[315717337,1709157035012,-500.0,0.00019178,2]
[315717338,1709157035023,-500.0,0.00019178,2]
[315717339,1709157035034,-500.0,0.00019178,2]
[315717340,1709157035046,-500.0,0.00019178,2]
[315717341,1709157035058,-500.0,0.00019178,2]
[315717342,1709157035069,-546.12,0.00019178,2]
[315717343,1709157035081,-500.0,0.00019178,2]
[315717344,1709157035092,-500.0,0.00019178,2]
[315717345,1709157035103,-155.0,0.00019178,2]
[315717346,1709157035115,-405.01042295,0.00019178,2]
[315717347,1709157035127,-500.0,0.00019178,2]
[315717348,1709157035139,-416.8308995,0.00019178,2]
[315717349,1709157035152,-502.70298707,0.00019178,2]
[315717350,1709157035164,-500.0,0.00019178,2]
[315717351,1709157035175,-500.0,0.00019178,2]
[315717352,1709157035186,-500.0,0.00019178,2]
[315717353,1709157035196,-500.0,0.00019178,2]
[315717354,1709157035207,-500.0,0.00019178,2]
[315717355,1709157035220,-500.0,0.00019178,2]
[315717356,1709157035232,-501.11821318,0.00019178,2]
[315717357,1709157035243,-500.0,0.00019178,2]
[315717358,1709157035255,-500.0,0.00019178,2]
[315717359,1709157035267,-500.63179742,0.00019178,2]
[315717360,1709157035278,-500.0,0.00019178,2]
[315717361,1709157035289,-500.0,0.00019178,2]
[315717362,1709157035301,-500.0,0.00019178,2]
[315717363,1709157035313,-500.0,0.00019178,2]
[315717364,1709157035327,-500.0,0.00019178,2]
[315717365,1709157035338,-500.0,0.00019178,2]
[315717366,1709157035349,-500.0,0.00019178,2]
[315717367,1709157035359,-500.0,0.00019178,2]
[315717368,1709157035370,-154.93802479,0.00019178,2]
[315717369,1709157035381,-501.12589823,0.00019178,2]
[315717370,1709157035394,-500.0,0.00019178,2]
[315717371,1709157035407,-183.24343355,0.00019178,2]
[315717372,1709157035419,-500.0,0.00019178,2]
[315717373,1709157035430,-179.78613439,0.00019178,2]
[315717374,1709157035446,-320.21386561,0.00019178,2]
[315717375,1709157035458,-34.85787379,0.00019178,2]
[315717376,1709157035473,-375.02780133,0.00019178,2]
[315717386,1709157041066,-91.60646754,0.00019178,2]
[315717387,1709157041076,-808.19,0.00019178,2]
[315717388,1709157041088,-500.0,0.00019178,2]
[315717389,1709157041099,-358.44465617,0.00019178,2]
[315717390,1709157041109,-582.50560385,0.00019178,2]
[315717391,1709157041120,-500.0,0.00019178,2]
[315717394,1709157041130,-197.82438494,0.00019178,2]
[315717395,1709157041140,-500.0,0.00019178,2]
[315717396,1709157041150,-500.0,0.00019178,2]
[315717397,1709157041160,-500.0,0.00019178,2]
[315717398,1709157041170,-500.0,0.00019178,2]
[315717399,1709157041180,-500.0,0.00019178,2]
[315717400,1709157041191,-411.17071071,0.00019178,2]
[315717401,1709157041202,-5518.6,0.00019178,2]
[315717402,1709157041213,-500.0,0.00019178,2]
[315717403,1709157041225,-229.68945352,0.00019178,2]
[315717404,1709157041238,-270.31054648,0.00019178,2]
[315717405,1709157041247,-500.0,0.00019178,2]
[315717406,1709157041257,-572.40701437,0.00019178,2]
[315717407,1709157041267,-83.81597562,0.00019178,2]
[315717408,1709157041280,-416.18402438,0.00019178,2]
[315717409,1709157041290,-500.0,0.00019178,2]
[315717410,1709157041300,-1056.77,0.00019178,2]
[315717411,1709157041311,-500.0,0.00019178,2]
[315717412,1709157041321,-235.35725535,0.00019178,2]
[315717413,1709157041331,-500.0,0.00019178,2]
[315717414,1709157041341,-500.0,0.00019178,2]
[315717415,1709157041351,-500.0,0.00019178,2]
[315717416,1709157041361,-452.04550329,0.00019178,2]
[315717417,1709157041372,-500.0,0.00019178,2]
[315717418,1709157041383,-2234.21,0.00019178,2]
[315717419,1709157041393,-500.0,0.00019178,2]
[315717420,1709157041403,-500.0,0.00019178,2]
[315717421,1709157041414,-502.42303561,0.00019178,2]
[315717422,1709157041424,-500.0,0.00019178,2]
[315717423,1709157041435,-500.0,0.00019178,2]
[315717424,1709157041445,-500.0,0.00019178,2]
[315717425,1709157041455,-277.17018192,0.00019178,2]
[315717426,1709157041471,-222.82981808,0.00019178,2]
[315717427,1709157041481,-500.0,0.00019178,2]
[315717428,1709157041492,-277.17018192,0.00019178,2]
[315717429,1709157041505,-222.82981808,0.00019178,2]
[315717430,1709157041515,-319.10676257,0.00019178,2]
[315717431,1709157041526,-500.0,0.00019178,2]
[315717432,1709157041536,-500.0,0.00019178,2]
[315717433,1709157041546,-34.27831864,0.00019178,2]
[315717434,1709157041901,-465.72168136,0.00019178,2]
[315717435,1709157041913,-657.65,0.00019178,2]
[315717436,1709157041924,-500.0,0.00019178,2]
[315717437,1709157041935,-500.0,0.00019178,2]
[315717438,1709157041945,-640.94855837,0.00019178,2]
[315717439,1709157041956,-500.0,0.00019178,2]
[315717440,1709157042109,-500.0,0.00019178,2]
[315717441,1709157042125,-500.0,0.00019178,2]
[315717442,1709157042136,-500.0,0.00019178,2]
[315717443,1709157042145,-500.0,0.00019178,2]
[315717444,1709157042155,-500.0,0.00019178,2]
[315717445,1709157042164,-500.0,0.00019178,2]
[315717446,1709157042173,-832.37,0.00019178,2]
[315717447,1709157042182,-500.0,0.00019178,2]
[315717448,1709157042192,-500.71576396,0.00019178,2]
[315717449,1709157042202,-500.0,0.00019178,2]
[315717450,1709157042213,-500.0,0.00019178,2]
[315717451,1709157042225,-500.0,0.00019178,2]
[315717452,1709157042234,-500.0,0.00019178,2]
[315717453,1709157042243,-637.63,0.00019178,2]
[315717454,1709157042254,-541.16,0.00019178,2]
[315717455,1709157042263,-468.28116296,0.00019178,2]
[315717456,1709157042273,-500.0,0.00019178,2]
[315717457,1709157042282,-500.0,0.00019178,2]
[315717458,1709157042292,-500.0,0.00019178,2]
[315717459,1709157042302,-500.0,0.00019178,2]
[315717460,1709157042311,-500.0,0.00019178,2]
[315717461,1709157042321,-500.0,0.00019178,2]
[315717462,1709157042330,-500.0,0.00019178,2]
[315717463,1709157042340,-500.0,0.00019178,2]
[315717464,1709157042350,-500.0,0.00019178,2]
[315717465,1709157042360,-500.35658726,0.00019178,2]
[315717466,1709157042369,-500.0,0.00019178,2]
[315717467,1709157042379,-3216.10307511,0.00019178,2]
[315717468,1709157042391,-529.68975891,0.00019178,2]
[315717469,1709157042403,-1969.88716598,0.00019178,2]
[315717470,1709157042412,-500.0,0.00019178,2]
[315717471,1709157042421,-496.85137534,0.00019178,2]
[315717472,1709157042431,-500.0,0.00019178,2]
[315717473,1709157042440,-503.07483176,0.00019178,2]
[315717474,1709157042450,-220.48257645,0.00019178,2]
[315717475,1709157042459,-349.27581163,0.00019178,2]
[315717477,1709157042474,-150.72418837,0.00019178,2]
[315717478,1709157042484,-500.74176148,0.00019178,2]
[315717480,1709157042494,-541.55,0.00019178,2]
[315717481,1709157042503,-291.99726031,0.00019178,2]
[315717482,1709157042513,-641.47,0.00019178,2]
[315717483,1709157042522,-303.39597932,0.00019178,2]
[315717484,1709157042531,-207.53338015,0.00019178,2]
[315717485,1709157042541,-500.0,0.00019178,2]
[315717486,1709157042550,-500.0,0.00019178,2]
[315717487,1709157042560,-931.23,0.00019178,2]
[315717488,1709157042569,-500.0,0.00019178,2]
[315717489,1709157042579,-378.99409079,0.00019178,2]
[315717490,1709157042590,-121.00590921,0.00019178,2]
[315717491,1709157042600,-500.0,0.00019178,2]
[315717492,1709157042609,-500.0,0.00019178,2]
[315717493,1709157042618,-500.0,0.00019178,2]
[315717495,1709157042628,-500.0,0.00019178,2]
[315717497,1709157042637,-500.0,0.00019178,2]
[315717499,1709157042646,-500.0,0.00019178,2]
[315717501,1709157042656,-500.0,0.00019178,2]
[315717503,1709157042665,-500.0,0.00019178,2]
[315717504,1709157042674,-500.0,0.00019178,2]
[315717505,1709157042683,-721.88,0.00019178,2]
[315717506,1709157042693,-500.0,0.00019178,2]
[315717507,1709157042702,-762.33,0.00019178,2]
[315717508,1709157042711,-822.46408793,0.00019178,2]
[315717509,1709157042725,-2934.06591207,0.00019178,2]
[315717510,1709157042735,-500.0,0.00019178,2]
[315717511,1709157042745,-500.0,0.00019178,2]
[315717512,1709157042755,-500.0,0.00019178,2]
[315717513,1709157042764,-534.80423236,0.00019178,2]
[315717514,1709157042773,-500.0,0.00019178,2]
[315717515,1709157042783,-500.0,0.00019178,2]
[315717516,1709157042792,-1128.65,0.00019178,2]
[315717517,1709157042801,-500.0,0.00019178,2]
[315717518,1709157042811,-500.0,0.00019178,2]
[315717519,1709157042820,-261.09390424,0.00019178,2]
[315717520,1709157042832,-238.90609576,0.00019178,2]
[315717521,1709157042841,-500.0,0.00019178,2]
[315717522,1709157042851,-400.24472666,0.00019178,2]
[315717523,1709157042861,-172.303321,0.00019178,2]
[315717524,1709157042870,-166.666666,0.00019178,2]
[315717525,1709157042881,-200.6348293,0.000192,2]
[315717526,1709157042891,-200.6348293,0.000192,2]
[315717527,1709157042901,-508.52835626,0.00019284,2]
[315717528,1709157042913,-200.6348293,0.000193,2]
[315717529,1709157042923,-25119.00914817,0.0001945,4]
[315717530,1709157042932,-500.0,0.00019451,2]
[315717531,1709157042942,-500.0,0.00019451,2]
[315717532,1709157042951,-155.20020827,0.00019452,2]
[315717533,1709157042961,-503.80788492,0.00019452,2]
[315717534,1709157042972,-500.0,0.00019452,2]
[315717535,1709157042982,-498.73358951,0.00019452,2]
[315717536,1709157042993,-1.26641049,0.00019452,2]
[315717537,1709157043002,-500.0,0.00019452,2]
[315717538,1709157043012,-151.0,0.00019452,2]
[315717539,1709157043021,-500.0,0.00019452,2]
[315717540,1709157043031,-502.08691135,0.00019452,2]
[315717541,1709157043040,-185.66266711,0.00019452,2]
[315717542,1709157043050,-500.0,0.00019452,2]
[315717543,1709157043059,-401.73174751,0.00019452,2]
[315717544,1709157043069,-500.0,0.00019452,2]
[315717545,1709157043080,-500.0,0.00019452,2]
[315717546,1709157043089,-500.0,0.00019452,2]
[315717547,1709157043098,-501.24203989,0.00019452,2]
[315717548,1709157043107,-500.0,0.00019452,2]
[315717549,1709157043117,-219.59697772,0.00019452,2]
[315717550,1709157043126,-500.0,0.00019452,2]
[315717551,1709157043135,-500.0,0.00019452,2]
[315717552,1709157043144,-500.0,0.00019452,2]
[315717553,1709157043153,-500.0,0.00019452,2]
[315717554,1709157043162,-500.0,0.00019452,2]
[315717555,1709157043171,-500.0,0.00019452,2]
[315717556,1709157043181,-808.19,0.00019452,2]
[315717558,1709157043190,-500.0,0.00019452,2]
[315717559,1709157043199,-500.0,0.00019452,2]
[315717560,1709157043209,-500.0,0.00019452,2]
[315717561,1709157043218,-5518.6,0.00019452,2]
[315717562,1709157043229,-500.0,0.00019452,2]
[315717563,1709157043238,-500.0,0.00019452,2]
[315717564,1709157043247,-500.0,0.00019452,2]
[315717565,1709157043257,-500.0,0.00019452,2]
[315717566,1709157043266,-1056.77,0.00019452,2]
[315717567,1709157043276,-500.0,0.00019452,2]
[315717568,1709157043285,-500.0,0.00019452,2]
[315717569,1709157043294,-2234.21,0.00019452,2]
[315717570,1709157043304,-500.0,0.00019452,2]
[315717571,1709157043313,-500.0,0.00019452,2]
[315717572,1709157043323,-500.0,0.00019452,2]
[315717573,1709157043332,-500.0,0.00019452,2]
[315717574,1709157043341,-500.0,0.00019452,2]
[315717575,1709157043351,-500.0,0.00019452,2]
[315717576,1709157043360,-500.0,0.00019452,2]
[315717577,1709157043369,-657.65,0.00019452,2]
[315717578,1709157043378,-500.0,0.00019452,2]
[315717579,1709157043388,-501.43554536,0.00019452,2]
[315717580,1709157043398,-500.0,0.00019452,2]
[315717581,1709157043407,-500.0,0.00019452,2]
[315717582,1709157043417,-500.0,0.00019452,2]
[315717583,1709157043426,-832.37,0.00019452,2]
[315717584,1709157043436,-500.0,0.00019452,2]
[315717585,1709157043445,-241.37039528,0.00019452,2]
[315717586,1709157043455,-637.63,0.00019452,2]
[315717587,1709157043464,-541.16,0.00019452,2]
[315717588,1709157043475,-517.95922984,0.00019452,2]
[315717589,1709157043485,-222.17526259,0.00019452,2]
[315717590,1709157043494,-500.0,0.00019452,2]
[315717591,1709157043504,-500.0,0.00019452,2]
[315717592,1709157043513,-281.82060927,0.00019452,2]
[315717593,1709157043542,-218.17939073,0.00019452,2]
[315717594,1709157043553,-2155.92762536,0.00019452,2]
[315717595,1709157043565,-3108.46134907,0.00019452,2]
[315717596,1709157043577,-451.29102557,0.00019452,2]
[315717597,1709157043587,-500.0,0.00019452,2]
[315717598,1709157043596,-641.47,0.00019452,2]
[315717599,1709157043606,-571.9240967,0.00019452,2]
[315717600,1709157043615,-931.23,0.00019452,2]
[315717601,1709157043624,-500.0,0.00019452,2]
[315717602,1709157043634,-500.0,0.00019452,2]
[315717603,1709157043643,-500.0,0.00019452,2]
[315717604,1709157043652,-500.0,0.00019452,2]
[315717605,1709157043661,-97.48776421,0.00019452,2]
[315717612,1709157049249,-624.39223579,0.00019452,2]
[315717613,1709157049259,-762.33,0.00019452,2]
[315717614,1709157049268,-146.43821194,0.00019452,2]
[315717615,1709157049331,-3610.09178806,0.00019452,2]
[315717616,1709157049340,-500.0,0.00019452,2]
[315717617,1709157049350,-1128.65,0.00019452,2]
[315717618,1709157049359,-508.52835626,0.00019489,2]
[315717619,1709157049368,-8232.02435619,0.0001949,2]
[315717620,1709157049378,-297.82166379,0.00019682,2]
[315717621,1709157049498,-202.17833621,0.00019682,2]
[315717622,1709157049507,-508.52835626,0.00019695,2]
[315717623,1709157049516,-5.98255458,0.00019725,2]
[315717624,1709157049528,-527.7795605,0.00019725,2]
[315717625,1709157049537,-500.0,0.00019726,2]
[315717626,1709157049546,-500.0,0.00019726,2]
[315717627,1709157049556,-500.0,0.00019726,2]
[315717628,1709157049565,-500.0,0.00019726,2]
[315717629,1709157049575,-298.6652455,0.00019726,2]
[315727155,1709158238366,-230.45532158,0.00017484,2]
[315727157,1709158238375,-816.91836721,0.00017484,2]
[315727239,1709158244728,-6525.38868726,0.00017484,2]
[315734781,1709159432596,-155.15049598,0.00017483,2]
[315734782,1709159432606,-7961.47233074,0.00017483,2]
[315734890,1709159442333,-795.25274607,0.00017483,2]
[315734892,1709159442345,-1375.10837111,0.00017483,2]
[315734894,1709159442357,-2825.88850841,0.00017483,2]
[315734969,1709159443026,-553.91317318,0.00017483,2]
[315734972,1709159443037,-261.13441482,0.00017484,2]
[315734979,1709159443096,-24638.86558518,0.00017484,2]
[315734981,1709159443107,-224.134094,0.00017514,2]
[315734984,1709159443116,-186.22183208,0.00017637,2]
[315734987,1709159443128,-155.15360207,0.00017753,2]
[315734990,1709159443138,-1632.7984417,0.000189,2]
[315734993,1709159443147,-169.5094521,0.00019078,2]
[315734996,1709159443156,-517.31375723,0.00019178,2]
[315734998,1709159443166,-500.0,0.00019178,2]
[315735000,1709159443175,-500.0,0.00019178,2]
[315735002,1709159443184,-500.0,0.00019178,2]
[315735004,1709159443193,-616.39256914,0.00019178,2]
[315735006,1709159443203,-500.0,0.00019178,2]
[315735008,1709159443212,-500.77842844,0.00019178,2]
[315735010,1709159443221,-607.59502204,0.00019178,2]
[315735012,1709159443230,-500.0,0.00019178,2]
[315735014,1709159443239,-500.0,0.00019178,2]
[315735016,1709159443248,-591.67167096,0.00019178,2]
[315735018,1709159443258,-289.66917888,0.00019178,2]
[315735020,1709159443271,-263.59512221,0.00019178,2]
[315735022,1709159443280,-500.0,0.00019178,2]
[315735024,1709159443289,-354.86821839,0.00019178,2]
[315735026,1709159443298,-500.0,0.00019178,2]
[315735028,1709159443308,-500.0,0.00019178,2]
[315735030,1709159443317,-500.0,0.00019178,2]
[315735032,1709159443326,-500.0,0.00019178,2]
[315735034,1709159443336,-740.84,0.00019178,2]
[315735036,1709159443345,-500.0,0.00019178,2]
[315735038,1709159443357,-500.0,0.00019178,2]
[315735040,1709159443366,-500.0,0.00019178,2]
[315735042,1709159443376,-291.05229882,0.00019178,2]
[315735044,1709159443385,-500.0,0.00019178,2]
[315735046,1709159443394,-501.35547942,0.00019178,2]
[315735049,1709159443404,-3443.48,0.00019178,2]
[315735050,1709159443414,-1148.16,0.00019178,2]
[315735053,1709159443423,-500.0,0.00019178,2]
[315735055,1709159443432,-500.67273146,0.00019178,2]
[315735057,1709159443441,-630.67326243,0.00019178,2]
[315735058,1709159443450,-500.0,0.00019178,2]
[315735060,1709159443459,-502.04463839,0.00019178,2]
[315735062,1709159443469,-500.0,0.00019178,2]
[315735064,1709159443478,-500.0,0.00019178,2]
[315735066,1709159443487,-968.71,0.00019178,2]
[315735068,1709159443496,-317.02712957,0.00019178,2]
[315735070,1709159443506,-763.0,0.00019178,2]
[315735072,1709159443515,-500.0,0.00019178,2]
[315735074,1709159443525,-500.0,0.00019178,2]
[315735076,1709159443535,-5058.72,0.00019178,2]
[315735078,1709159443544,-290.62562377,0.00019178,2]
[315735080,1709159443554,-498.89,0.00019178,2]
[315735082,1709159443563,-500.0,0.00019178,2]
[315735084,1709159443573,-2048.03,0.00019178,2]
[315735086,1709159443582,-1593.91189011,0.00019178,2]
[315735090,1709159443608,-763.59512221,0.00019178,2]
[315735457,1709159447505,-280.4,0.00017482,2]
[315741299,1709160474703,24900.0,0.00016389,2]
[315741482,1709160639463,-155.12875687,0.00017369,2]
[315741501,1709160639624,-224.134094,0.0001737,2]
[315741503,1709160639635,-155.12875687,0.0001738,2]
[315741505,1709160639644,-285.0,0.00017391,2]
[315741507,1709160639653,-2011.55732947,0.00017392,2]
[315742057,1709160644861,-395.92,0.00017392,2]
[315747632,1709160990528,160.1207913,0.00017298,2]
[315747688,1709161831861,-155.11323266,0.00017354,2]
[315747690,1709161831870,-1111.2125287,0.00017354,2]
[315747697,1709161831921,-576.45,0.00017354,2]
[315747699,1709161831933,-394.70362969,0.00017354,2]
[315747701,1709161831945,-491.32346709,0.00017354,2]
[315747703,1709161831954,-1301.55707308,0.00017355,2]
[315747705,1709161831963,-923.34387235,0.00017355,2]
[315748282,1709161838206,-4736.35025036,0.00017355,2]
[315748289,1709161838263,-713.41948591,0.00017355,2]
[315748295,1709161838313,-4885.36552173,0.00017355,2]
[315748297,1709161838324,-2253.15599916,0.00017355,2]
[315748299,1709161838334,-31.93143877,0.00017482,2]
[315748301,1709161838343,-4749.84051772,0.00018055,2]
[315748566,1709161840998,-11596.27170718,0.00018055,2]
[315748568,1709161841007,-1088.53229447,0.000189,2]
[315748570,1709161841016,-169.50945208,0.00019078,2]
[315748572,1709161841025,-1213.00670702,0.00019177,2]
[315748574,1709161841034,-500.0,0.00019178,2]
[315748575,1709161841044,-500.0,0.00019178,2]
[315748577,1709161841053,-501.88399839,0.00019178,2]
[315748579,1709161841062,-500.39180037,0.00019178,2]
[315748581,1709161841072,-500.0,0.00019178,2]
[315748583,1709161841080,-500.0,0.00019178,2]
[315748585,1709161841090,-500.0,0.00019178,2]
[315748587,1709161841099,-500.0,0.00019178,2]
[315748589,1709161841108,-500.0,0.00019178,2]
[315748590,1709161841118,-500.0,0.00019178,2]
[315748592,1709161841127,-500.35008704,0.00019178,2]
[315748594,1709161841136,-500.0,0.00019178,2]
[315748596,1709161841145,-500.0,0.00019178,2]
[315748598,1709161841154,-500.0,0.00019178,2]
[315748600,1709161841164,-511.95105417,0.00019178,2]
[315748601,1709161841172,-500.0,0.00019178,2]
[315748603,1709161841182,-500.0,0.00019178,2]
[315748605,1709161841191,-308.15816311,0.00019178,2]
[315748607,1709161841200,-500.0,0.00019178,2]
[315748609,1709161841210,-500.0,0.00019178,2]
[315748611,1709161841218,-500.0,0.00019178,2]
[315748613,1709161841228,-480.33059787,0.00019178,2]
[315748615,1709161841237,-500.0,0.00019178,2]
[315748617,1709161841247,-500.0,0.00019178,2]
[315748619,1709161841255,-494.85355284,0.00019178,2]
[315748620,1709161841264,-500.0,0.00019178,2]
[315748622,1709161841273,-500.0,0.00019178,2]
[315748624,1709161841283,-500.0,0.00019178,2]
[315748626,1709161841293,-500.0,0.00019178,2]
[315748628,1709161841302,-500.0,0.00019178,2]
[315748630,1709161841312,-500.0,0.00019178,2]
[315748632,1709161841321,-500.0,0.00019178,2]
[315748634,1709161841330,-500.0,0.00019178,2]
[315748636,1709161841340,-500.0,0.00019178,2]
[315748638,1709161841349,-386.34,0.00019178,2]
[315748639,1709161841358,-500.0,0.00019178,2]
[315748641,1709161841367,-584.5,0.00019178,2]
[315748643,1709161841377,-698.8,0.00019178,2]
[315748645,1709161841386,-271.92,0.00019178,2]
[315748647,1709161841395,-500.0,0.00019178,2]
[315748649,1709161841405,-853.63,0.00019178,2]
[315748651,1709161841415,-584.66,0.00019178,2]
[315748653,1709161841425,-500.0,0.00019178,2]
[315748655,1709161841434,-500.0,0.00019178,2]
[315748657,1709161841445,-588.01,0.00019178,2]
[315748658,1709161841455,-500.0,0.00019178,2]
[315748660,1709161841465,-500.0,0.00019178,2]
[315748662,1709161841474,-5141.14,0.00019178,2]
[315748664,1709161841486,-500.0,0.00019178,2]
[315748666,1709161841495,-3300.0,0.00019178,2]
[315748668,1709161841504,-661.73,0.00019178,2]
[315748670,1709161841513,-1100.32,0.00019178,2]
[315748672,1709161841523,-500.0,0.00019178,2]
[315748673,1709161841532,-731.21,0.00019178,2]
[315748675,1709161841541,-500.0,0.00019178,2]
[315748677,1709161841552,-709.97,0.00019178,2]
[315748679,1709161841561,-1962.69,0.00019178,2]
[315748681,1709161841570,-500.0,0.00019178,2]
[315748683,1709161841580,-928.35,0.00019178,2]
[315748685,1709161841589,-500.0,0.00019178,2]
[315748687,1709161841598,-4847.94,0.00019178,2]
[315748688,1709161841607,-602.85,0.00019178,2]
[315748690,1709161841617,-172.303321,0.00019178,2]
[315748692,1709161841627,-166.666666,0.00019178,2]
[315748694,1709161841636,-158.39,0.00019442,3]
[315748696,1709161841645,-475.22,0.00019442,3]
[315748698,1709161841654,-500.0,0.00019452,2]
[315748700,1709161841663,-500.0,0.00019452,2]
[315748702,1709161841672,-500.0,0.00019452,2]
[315748704,1709161841681,-500.0,0.00019452,2]
[315748705,1709161841690,-508.6,0.00019452,2]
[315748707,1709161841699,-500.0,0.00019452,2]
[315748709,1709161841708,-500.0,0.00019452,2]
[315748711,1709161841717,-420.57,0.00019452,2]
[315748713,1709161841727,-500.0,0.00019452,2]
[315748715,1709161841738,-584.5,0.00019452,2]
[315748717,1709161841747,-698.8,0.00019452,2]
[315748719,1709161841756,-500.0,0.00019452,2]
[315748721,1709161841765,-853.63,0.00019452,2]
[315748723,1709161841774,-500.0,0.00019452,2]
[315748725,1709161841783,-500.0,0.00019452,2]
[315748726,1709161841792,-588.01,0.00019452,2]
[315748728,1709161841801,-500.0,0.00019452,2]
[315748730,1709161841810,-194.86615274,0.00019452,2]
[315748732,1709161841820,-5141.14,0.00019452,2]
[315748734,1709161841829,-500.0,0.00019452,2]
[315748736,1709161841839,-3300.0,0.00019452,2]
[315748738,1709161841848,-661.73,0.00019452,2]
[315748740,1709161841857,-1100.32,0.00019452,2]
[315748742,1709161841866,-500.0,0.00019452,2]
[315748744,1709161841874,-731.21,0.00019452,2]
[315748746,1709161841883,-500.0,0.00019452,2]